bitfinex/quotes_BTCUSD_20251110
["timestamp","ask_amount","ask_price","bid_price","bid_amount"]
[1762816142767,0.535597,106080.0,106070.0,1e-08]
[1762816142914,0.23992695,106080.0,106070.0,1e-08]
[1762816143906,0.5763316,106080.0,106070.0,1e-08]
[1762816147248,0.23992695,106080.0,106070.0,1e-08]
[1762816147608,0.5763316,106080.0,106070.0,1e-08]
[1762816151426,0.23992695,106080.0,106070.0,1e-08]
[1762816159815,0.69199959,106080.0,106070.0,1e-08]
[1762816163016,0.53582408,106080.0,106070.0,1e-08]
[1762816166623,0.23992695,106080.0,106070.0,1e-08]
[1762816173780,0.18853695,106080.0,106070.0,1e-08]
[1762816174005,0.18853695,106080.0,106070.0,0.29589714]
[1762816175020,0.18855472,106070.0,106060.0,0.52088579]
[1762816175155,0.1886445,106070.0,106060.0,0.52088579]
[1762816175601,0.1506445,106070.0,106060.0,0.52088579]
[1762816177566,0.1506445,106070.0,106060.0,0.54088579]
[1762816177973,0.1506445,106070.0,106060.0,0.3523133]
[1762816178141,0.1506445,106070.0,106060.0,0.05641617]
[1762816178338,0.1506445,106070.0,106060.0,0.3523133]
[1762816178951,0.1506445,106070.0,106060.0,0.02023389]
[1762816179422,0.45819163,106070.0,106060.0,0.02023389]
[1762816179827,0.47347163,106070.0,106060.0,0.02023389]
[1762816180029,0.49702163,106070.0,106060.0,0.02023389]
[1762816180441,0.49802163,106070.0,106060.0,0.02023389]
[1762816181485,0.49902163,106070.0,106060.0,0.02023389]
[1762816196183,0.1526445,106070.0,106060.0,0.02023389]
[1762816198493,0.1526445,106070.0,106060.0,0.20880639]
[1762816198703,0.1526445,106070.0,106060.0,0.02023389]
[1762816199801,0.1906445,106070.0,106060.0,0.5408858]
[1762816200060,0.00208978,106070.0,106060.0,0.5408858]
[1762816200900,0.1906445,106070.0,106060.0,0.3523133]
[1762816201699,0.1906445,106070.0,106060.0,0.5408858]
[1762816202197,0.00208978,106070.0,106060.0,0.5408858]
[1762816202422,0.1906445,106070.0,106060.0,0.5408858]
[1762816203154,0.1536445,106070.0,106060.0,0.5408858]
[1762816203389,0.18853695,106080.0,106060.0,0.5408858]
[1762816203620,0.18853695,106080.0,106070.0,0.02]
[1762816203823,0.19794513,106090.0,106080.0,0.02]
[1762816204083,0.19794513,106090.0,106080.0,0.50443408]
[1762816204310,0.00942595,106090.0,106080.0,0.50443408]
[1762816204803,0.19794513,106090.0,106080.0,0.31589713]
[1762816205241,0.19894513,106090.0,106080.0,0.31589713]
[1762816205461,0.19994513,106090.0,106080.0,0.31589713]
[1762816208073,0.19051918,106090.0,106080.0,0.31589713]
[1762816213387,0.002,106090.0,106080.0,0.50443408]
[1762816213613,0.19793747,106110.0,106100.0,0.02]
[1762816213854,0.28273448,106120.0,106110.0,0.02]
[1762816214782,0.28321157,106120.0,106110.0,0.02]
[1762816215506,0.28521157,106120.0,106110.0,0.02]
[1762816216546,0.28721157,106120.0,106110.0,0.02]
[1762816219125,0.28721157,106120.0,106110.0,0.31554132]
[1762816219454,0.28721157,106120.0,106110.0,0.02]
[1762816221288,0.28721157,106120.0,106110.0,0.31554132]
[1762816222622,0.28721157,106120.0,106110.0,0.02]
[1762816222837,0.28721157,106120.0,106110.0,0.34416369]
[1762816231383,0.28721157,106120.0,106110.0,0.02]
[1762816231632,0.58275289,106120.0,106110.0,0.02]
[1762816236046,0.28721157,106120.0,106110.0,0.02]
[1762816236633,0.58275289,106120.0,106110.0,0.02]
[1762816236772,0.28721157,106120.0,106110.0,0.02]
[1762816236963,0.58275289,106120.0,106110.0,0.02]
[1762816240530,0.28721157,106120.0,106110.0,0.02]
[1762816240734,0.28721157,106120.0,106110.0,0.31554132]
[1762816240940,0.00447709,106120.0,106110.0,0.54020724]
[1762816241148,0.00447709,106120.0,106110.0,1.59289924]
[1762816241354,0.00447709,106120.0,106110.0,1.50418024]
[1762816241718,0.00247709,106120.0,106110.0,1.50418024]
[1762816241929,0.00047709,106120.0,106110.0,1.50418024]
[1762816242133,0.00147709,106120.0,106110.0,1.50418024]
[1762816245138,0.00147709,106120.0,106110.0,1.79972156]
[1762816245349,0.19796646,106150.0,106130.0,0.50398944]
[1762816245569,0.18843037,106140.0,106130.0,0.50398944]
[1762816245777,0.16020937,106160.0,106140.0,0.20843037]
[1762816245983,0.18841262,106150.0,106140.0,0.31554132]
[1762816246400,0.18841262,106150.0,106140.0,0.02]
[1762816246602,0.18841262,106150.0,106140.0,0.31554132]
[1762816248226,0.18941262,106150.0,106140.0,0.31554132]
[1762816248436,0.19141262,106150.0,106140.0,0.31554132]
[1762816253031,0.19141262,106150.0,106140.0,0.02]
[1762816253242,0.19141262,106150.0,106140.0,0.31554132]
[1762816254377,0.19141262,106150.0,106140.0,0.02]
[1762816254623,0.19141262,106150.0,106140.0,0.31554132]
[1762816256096,0.19141262,106150.0,106140.0,0.02]
[1762816256531,0.19141262,106150.0,106140.0,0.31554132]
[1762816258315,0.19141262,106150.0,106140.0,0.02]
[1762816258618,0.19141262,106150.0,106140.0,0.31554132]
[1762816259676,0.19141262,106150.0,106140.0,0.02]
[1762816260901,0.19141262,106150.0,106140.0,0.31554132]
[1762816261521,0.19141262,106150.0,106140.0,0.3517236]
[1762816262538,0.003,106150.0,106140.0,0.83569529]
[1762816262693,0.003,106150.0,106140.0,1.03569529]
[1762816263112,0.001,106150.0,106140.0,1.03569529]
[1762816263317,0.18007397,106170.0,106150.0,0.22458666]
[1762816263535,0.18007397,106170.0,106160.0,0.04618228]
[1762816264771,0.18207397,106170.0,106160.0,0.04618228]
[1762816265018,0.18407397,106170.0,106160.0,0.04618228]
[1762816265443,0.18207397,106170.0,106160.0,0.04618228]
[1762816265878,0.18507397,106170.0,106160.0,0.04618228]
[1762816273542,0.01441885,106170.0,106160.0,0.23457715]
[1762816273747,0.01441885,106170.0,106160.0,0.82565979]
[1762816273748,0.005,106170.0,106160.0,0.82565979]
[1762816274125,0.005,106170.0,106160.0,0.53011847]
[1762816274328,0.005,106170.0,106160.0,0.82565979]
[1762816274524,0.002,106170.0,106160.0,0.82565979]
[1762816274737,0.18869102,106180.0,106170.0,0.02]
[1762816274916,0.18869102,106180.0,106170.0,0.31554132]
[1762816275518,0.18869102,106180.0,106170.0,0.50391845]
[1762816275737,0.18869102,106180.0,106170.0,0.31554132]
[1762816276139,0.19069102,106180.0,106170.0,0.31554132]
[1762816276582,0.19069102,106180.0,106170.0,0.50391845]
[1762816276799,0.19069102,106180.0,106170.0,0.31554132]
[1762816276969,0.19169102,106180.0,106170.0,0.50391845]
[1762816277169,0.19169102,106180.0,106170.0,0.54010073]
[1762816278024,0.0032,106180.0,106170.0,0.54010073]
[1762816278225,0.19155938,106180.0,106170.0,0.54010073]
[1762816278631,0.19155938,106180.0,106170.0,0.3517236]
[1762816280700,0.19155938,106180.0,106170.0,0.54010073]
[1762816280906,0.18845338,106180.0,106170.0,0.24455941]
[1762816281899,0.18845338,106180.0,106170.0,0.05618228]
[1762816284062,0.18845338,106180.0,106170.0,0.53974518]
[1762816286092,0.18835938,106180.0,106170.0,0.51974518]
[1762816286311,0.18835938,106180.0,106170.0,0.05618228]
[1762816286526,0.18835938,106180.0,106170.0,0.35136805]
[1762816287256,0.18835938,106180.0,106170.0,0.53974518]
[1762816288080,0.20128015,106190.0,106180.0,0.05618228]
[1762816288263,0.20142309,106190.0,106180.0,0.05618228]
[1762816289537,0.20542309,106190.0,106180.0,0.05618228]
[1762816292356,0.20142309,106190.0,106180.0,0.05618228]
[1762816292567,0.20242309,106190.0,106180.0,0.05618228]
[1762816292772,0.20342309,106190.0,106180.0,0.24454166]
[1762816294382,0.20342309,106190.0,106180.0,0.05618228]
[1762816297144,0.54920886,106190.0,106180.0,0.02]
[1762816297993,0.52554886,106190.0,106180.0,0.02]
[1762816299757,0.54920886,106190.0,106180.0,0.02]
[1762816302409,0.54720886,106190.0,106180.0,0.02]
[1762816302618,0.54720886,106190.0,106180.0,0.026]
[1762816307496,0.25202309,106190.0,106180.0,0.026]
[1762816307713,0.54720886,106190.0,106180.0,0.026]
[1762816307923,0.52354886,106190.0,106180.0,0.026]
[1762816308138,0.50849886,106190.0,106180.0,0.026]
[1762816309879,0.49660886,106190.0,106180.0,0.026]
[1762816312875,0.20142309,106190.0,106180.0,0.06218228]
[1762816313867,0.20142309,106190.0,106180.0,0.05918228]
[1762816314234,0.20142309,106190.0,106180.0,0.05618228]
[1762816314488,0.20442309,106190.0,106180.0,0.05618228]
[1762816316101,0.54927886,106190.0,106180.0,0.02]
[1762816316320,0.20442309,106190.0,106180.0,0.02]
[1762816316975,0.15545431,106190.0,106180.0,0.02]
[1762816320444,0.15545431,106190.0,106180.0,0.20835938]
[1762816320856,0.15545431,106190.0,106180.0,0.02]
[1762816321969,0.15545431,106190.0,106180.0,0.20835938]
[1762816322181,0.15545431,106190.0,106180.0,0.24454166]
[1762816322618,0.19148459,106190.0,106180.0,0.24454166]
[1762816323476,0.19148459,106190.0,106180.0,0.05618228]
[1762816323695,0.15348459,106190.0,106180.0,0.05618228]
[1762816324528,0.15348459,106190.0,106180.0,0.24454166]
[1762816324968,0.18885008,106200.0,106180.0,0.24454166]
[1762816325178,0.18885008,106200.0,106190.0,0.20834165]
[1762816325361,0.18885008,106200.0,106190.0,0.02]
[1762816325597,0.18908352,106200.0,106190.0,0.02]
[1762816326318,0.19008352,106200.0,106190.0,0.02]
[1762816326761,0.18908352,106200.0,106190.0,0.02]
[1762816327184,0.19108352,106200.0,106190.0,0.02]
[1762816328423,0.48626929,106200.0,106190.0,0.02]
[1762816329251,0.19108352,106200.0,106190.0,0.02]
[1762816330771,0.51401929,106200.0,106190.0,0.02]
[1762816332910,0.53661929,106200.0,106190.0,0.02]
[1762816333124,0.18837713,106170.0,106160.0,0.27854]
[1762816333333,0.18837713,106170.0,106160.0,0.35776009]
[1762816334437,0.18837713,106170.0,106160.0,0.35976009]
[1762816335049,0.18837713,106170.0,106160.0,0.65494586]
[1762816336187,0.15182241,106180.0,106170.0,0.05618228]
[1762816340113,0.15182241,106180.0,106170.0,0.02]
[1762816340326,0.47475818,106180.0,106170.0,0.02]
[1762816340696,0.49735818,106180.0,106170.0,0.02]
[1762816342967,0.79384853,106180.0,106170.0,0.02]
[1762816343789,0.793399,106180.0,106170.0,0.01955047]
[1762816344389,0.18837713,106170.0,106160.0,0.02014294]
[1762816344590,0.82996325,106170.0,106160.0,0.00014294]
[1762816345629,0.82996325,106170.0,106160.0,0.02014294]
[1762816346258,0.83096325,106170.0,106160.0,0.02014294]
[1762816349037,0.18843037,106140.0,106130.0,0.11304]
[1762816349188,0.51058843,106140.0,106130.0,0.13212992]
[1762816350565,0.49539843,106140.0,106130.0,0.13212992]
[1762816352480,0.53467843,106140.0,106130.0,0.13212992]
[1762816353435,0.51058843,106140.0,106130.0,0.13212992]
[1762816353870,0.21525037,106140.0,106130.0,0.13212992]
[1762816354087,0.51058843,106140.0,106130.0,0.13212992]
[1762816355508,0.49539843,106140.0,106130.0,0.13212992]
[1762816355929,0.20006037,106140.0,106130.0,0.13212992]
[1762816356114,0.49539843,106140.0,106130.0,0.13212992]
[1762816356957,0.49539843,106140.0,106130.0,0.01908992]
[1762816359686,0.82990649,106140.0,106130.0,0.01908992]
[1762816361144,0.23923037,106140.0,106130.0,0.01908992]
[1762816361355,0.18943037,106140.0,106130.0,0.01908992]
[1762816363392,0.49677843,106140.0,106130.0,0.01908992]
[1762816363807,0.24061037,106140.0,106130.0,0.01908992]
[1762816363980,0.83128649,106140.0,106130.0,0.01908992]
[1762816364607,0.53594843,106140.0,106130.0,0.01908992]
[1762816364820,0.83128649,106140.0,106130.0,0.01908992]
[1762816366678,0.53594843,106140.0,106130.0,0.01908992]
[1762816366874,0.18943037,106140.0,106130.0,0.03793473]
[1762816367207,0.18943037,106140.0,106130.0,0.01908992]
[1762816367493,0.48476843,106140.0,106130.0,0.01908992]
[1762816367807,0.18943037,106140.0,106130.0,0.01908992]
[1762816369175,0.48476843,106140.0,106130.0,0.01908992]
[1762816369386,0.49677843,106140.0,106130.0,0.01908992]
[1762816370980,0.51342843,106140.0,106130.0,0.01908992]
[1762816371877,0.49677843,106140.0,106130.0,0.01908992]
[1762816373125,0.48476843,106140.0,106130.0,0.01908992]
[1762816373339,0.001,106140.0,106130.0,0.5028761]
[1762816373551,0.001,106140.0,106130.0,0.90709838]
[1762816373991,0.17984417,106160.0,106140.0,0.51995071]
[1762816374192,0.18926391,106160.0,106150.0,0.01]
[1762816377022,0.48560197,106160.0,106150.0,0.01]
[1762816378509,0.19026391,106160.0,106150.0,0.01]
[1762816379180,0.19026391,106160.0,106150.0,0.19841262]
[1762816380155,0.001,106160.0,106150.0,0.52993296]
[1762816380380,0.001,106160.0,106150.0,2.72993296]
[1762816380599,0.001,106160.0,106150.0,1.23754796]
[1762816380824,0.16079084,106180.0,106170.0,0.01900001]
[1762816381404,0.16079084,106180.0,106170.0,0.20737714]
[1762816381635,0.16079084,106180.0,106170.0,0.01900001]
[1762816383383,0.16083845,106180.0,106170.0,0.01900001]
[1762816387370,0.16083845,106180.0,106170.0,0.31433807]
[1762816390451,0.16083845,106180.0,106170.0,0.5027152]
[1762816390884,0.16083845,106180.0,106170.0,0.31433807]
[1762816391088,0.16083845,106180.0,106170.0,0.35052035]
[1762816391506,0.12583844,106180.0,106170.0,0.35052035]
[1762816392776,0.12583844,106180.0,106170.0,0.05518229]
[1762816393014,0.12583844,106180.0,106170.0,0.31433807]
[1762816393794,0.12583844,106180.0,106170.0,0.01900001]
[1762816393989,0.12583844,106180.0,106170.0,0.31433807]
[1762816394461,0.12583844,106180.0,106170.0,0.01900001]
[1762816396419,0.12583844,106180.0,106170.0,0.53889748]
[1762816399333,4.761e-05,106180.0,106170.0,2.54242953]
[1762816399583,0.00067546,106200.0,106190.0,0.23452393]
[1762816399783,0.00067546,106200.0,106190.0,0.52986199]
[1762816401996,0.18899937,106200.0,106190.0,0.52986199]
[1762816402961,0.18899937,106200.0,106190.0,0.52958559]
[1762816404046,0.15099937,106200.0,106190.0,0.52958559]
[1762816404398,0.15099937,106200.0,106190.0,0.34124394]
[1762816406104,0.15099937,106200.0,106190.0,0.52958559]
[1762816406313,0.15099937,106200.0,106190.0,0.34124394]
[1762816406680,0.15099937,106200.0,106190.0,0.04618228]
[1762816407721,0.15099937,106200.0,106190.0,0.23452393]
[1762816407939,0.15099937,106200.0,106190.0,0.04618228]
[1762816409114,0.19772188,106210.0,106190.0,0.04618228]
[1762816409115,0.19772188,106210.0,106190.0,0.23452393]
[1762816409308,0.18832391,106200.0,106190.0,0.5385856]
[1762816409862,0.18832391,106200.0,106190.0,0.24352394]
[1762816410065,0.18832391,106200.0,106190.0,0.05518229]
[1762816411450,0.18832391,106200.0,106190.0,0.24352394]
[1762816411865,0.18832391,106200.0,106190.0,0.05518229]
[1762816412093,0.15032391,106200.0,106190.0,0.05518229]
[1762816412548,0.15032391,106200.0,106190.0,0.24352394]
[1762816412767,0.15032391,106200.0,106190.0,0.5385856]
[1762816413485,0.18832391,106200.0,106190.0,0.51958559]
[1762816413697,0.18832391,106200.0,106190.0,0.5385856]
[1762816415168,0.18832391,106200.0,106190.0,0.35024395]
[1762816415495,0.18832391,106200.0,106190.0,0.5385856]
[1762816418498,0.18832391,106200.0,106190.0,0.24352394]
[1762816418900,0.18832391,106200.0,106190.0,0.5385856]
[1762816419103,0.18832391,106200.0,106190.0,0.35024395]
[1762816419531,0.18832391,106200.0,106190.0,0.05518229]
[1762816420637,0.18832391,106200.0,106190.0,0.24352394]
[1762816421882,0.53576557,106200.0,106190.0,0.01900001]
[1762816422093,0.83082723,106200.0,106190.0,0.01900001]
[1762816422204,0.19782553,106170.0,106140.0,0.01698072]
[1762816422408,0.18841262,106150.0,106140.0,0.01004761]
[1762816423144,0.1394252,106150.0,106140.0,0.01004761]
[1762816423707,0.1394252,106150.0,106140.0,0.01404761]
[1762816423834,0.1394252,106150.0,106140.0,0.01004761]
[1762816424239,0.1394252,106150.0,106140.0,0.01104761]
[1762816424478,0.1678052,106150.0,106140.0,0.01104761]
[1762816424649,0.48686686,106150.0,106140.0,0.01104761]
[1762816425072,0.1678052,106150.0,106140.0,0.01104761]
[1762816425480,0.1678052,106150.0,106140.0,0.01004761]
[1762816426295,0.1394252,106150.0,106140.0,0.01004761]
[1762816433163,0.1666552,106150.0,106140.0,0.01004761]
[1762816433321,0.48562686,106150.0,106140.0,0.01004761]
[1762816434493,0.1905652,106150.0,106140.0,0.01004761]
[1762816434799,0.1666552,106150.0,106140.0,0.01004761]
[1762816435370,0.1905652,106150.0,106140.0,0.01004761]
[1762816439077,0.48562686,106150.0,106140.0,0.01004761]
[1762816441415,0.19781461,106160.0,106140.0,0.48353906]
[1762816441662,0.19781461,106160.0,106150.0,0.05518229]
[1762816441881,0.19782553,106170.0,106160.0,0.01900001]
[1762816442307,0.23845553,106170.0,106160.0,0.01900001]
[1762816442529,0.18839487,106160.0,106150.0,0.05518229]
[1762816443408,0.18839487,106160.0,106150.0,0.35024395]
[1762816443817,0.20453487,106160.0,106150.0,0.01900001]
[1762816444001,0.22902487,106160.0,106150.0,0.01900001]
[1762816445570,0.23102487,106160.0,106150.0,0.01900001]
[1762816446191,0.23202487,106160.0,106150.0,0.01900001]
[1762816446662,0.20753487,106160.0,106150.0,0.01900001]
[1762816448415,0.23202487,106160.0,106150.0,0.01900001]
[1762816449354,0.20753487,106160.0,106150.0,0.01900001]
[1762816449599,0.19139487,106160.0,106150.0,0.01900001]
[1762816449820,0.1424122,106160.0,106150.0,0.01900001]
[1762816452284,0.1544122,106160.0,106150.0,0.01900001]
[1762816453794,0.1424122,106160.0,106150.0,0.31406167]
[1762816454249,0.1424122,106160.0,106150.0,0.01900001]
[1762816454696,0.1555522,106160.0,106150.0,0.01900001]
[1762816455146,0.1800422,106160.0,106150.0,0.01900001]
[1762816455963,0.1555522,106160.0,106150.0,0.01900001]
[1762816457134,0.1394122,106160.0,106150.0,0.01900001]
[1762816462897,0.1514622,106160.0,106150.0,0.01900001]
[1762816463514,0.1680522,106160.0,106150.0,0.01900001]
[1762816463723,0.1918722,106160.0,106150.0,0.01900001]
[1762816465614,0.1680522,106160.0,106150.0,0.01900001]
[1762816467288,0.1514622,106160.0,106150.0,0.01900001]
[1762816469715,0.1680522,106160.0,106150.0,0.01900001]
[1762816470066,0.1918722,106160.0,106150.0,0.01900001]
[1762816470709,0.1680522,106160.0,106150.0,0.01900001]
[1762816471589,0.1918722,106160.0,106150.0,0.01900001]
[1762816479132,0.1680522,106160.0,106150.0,0.01900001]
[1762816483442,0.1918722,106160.0,106150.0,0.01900001]
[1762816484794,0.48724593,106160.0,106150.0,0.01900001]
[1762816486241,0.1918722,106160.0,106150.0,0.01900001]
[1762816488198,0.48724593,106160.0,106150.0,0.01900001]
[1762816489383,0.78261966,106160.0,106150.0,0.01900001]
[1762816489600,0.78361966,106160.0,106150.0,0.01900001]
[1762816490473,0.78561966,106160.0,106150.0,0.01900001]
[1762816492620,0.1948722,106160.0,106150.0,0.01900001]
[1762816492864,0.49024593,106160.0,106150.0,0.01900001]
[1762816494548,0.48378635,106150.0,106140.0,0.02004761]
[1762816494748,0.53530635,106150.0,106140.0,0.02004761]
[1762816494863,0.18846588,106120.0,106110.0,0.40845373]
[1762816495063,0.21590346,106120.0,106110.0,0.44563601]
[1762816495264,0.24003346,106120.0,106110.0,0.44563601]
[1762816495683,0.24003346,106120.0,106110.0,0.15026228]
[1762816496101,0.21590346,106120.0,106110.0,0.15026228]
[1762816497312,0.18851346,106120.0,106110.0,0.63411965]
[1762816497520,4.758e-05,106120.0,106110.0,0.63411965]
[1762816497722,4.758e-05,106120.0,106110.0,0.93049338]
[1762816497943,4.758e-05,106120.0,106110.0,0.81741338]
[1762816499345,0.1494976,106130.0,106120.0,0.22464816]
[1762816499548,0.1494976,106130.0,106120.0,0.83448554]
[1762816500071,0.1494976,106130.0,106120.0,0.64601966]
[1762816500309,0.1494976,106130.0,106120.0,0.83448554]
[1762816501610,0.19788167,106140.0,106120.0,0.83448554]
[1762816501840,0.19788167,106140.0,106130.0,0.29537373]
[1762816501993,0.19788167,106140.0,106130.0,0.53900414]
[1762816502664,0.00942151,106140.0,106130.0,0.53900414]
[1762816503066,0.19785188,106140.0,106130.0,0.35055602]
[1762816503271,0.19785188,106140.0,106130.0,0.53900414]
[1762816504185,0.14883194,106160.0,106150.0,0.01900001]
[1762816504389,0.14883194,106160.0,106150.0,0.50278636]
[1762816504596,0.14883194,106160.0,106150.0,0.31437374]
[1762816504802,0.16110194,106160.0,106150.0,0.31437374]
[1762816505002,0.16110194,106160.0,106150.0,0.01900001]
[1762816505347,0.16110194,106160.0,106150.0,0.31437374]
[1762816505547,0.16110194,106160.0,106150.0,0.02200001]
[1762816505727,0.17726194,106160.0,106150.0,0.01900001]
[1762816505931,0.14883194,106160.0,106150.0,0.01900001]
[1762816506159,0.20198194,106160.0,106150.0,0.01900001]
[1762816506486,0.17726194,106160.0,106150.0,0.01900001]
[1762816507365,0.17726194,106160.0,106150.0,0.31437374]
[1762816507933,0.16110194,106160.0,106150.0,0.31437374]
[1762816509347,0.14883194,106160.0,106150.0,0.31437374]
[1762816511625,0.17726194,106160.0,106150.0,0.01900001]
[1762816511840,0.49735567,106160.0,106150.0,0.01900001]
[1762816512232,0.7927294,106160.0,106150.0,0.01900001]
[1762816513184,0.20198194,106160.0,106150.0,0.01900001]
[1762816513380,0.7937294,106160.0,106150.0,0.01900001]
[1762816514461,0.7947294,106160.0,106150.0,0.01900001]
[1762816514822,0.49935567,106160.0,106150.0,0.01900001]
[1762816516595,0.7947294,106160.0,106150.0,0.01900001]
[1762816520552,0.20398194,106160.0,106150.0,0.01900001]
[1762816520817,0.47062537,106160.0,106150.0,0.01900001]
[1762816521587,0.7659991,106160.0,106150.0,0.01900001]
[1762816522310,0.17525164,106160.0,106150.0,0.01900001]
[1762816522489,0.47062537,106160.0,106150.0,0.01900001]
[1762816523550,0.7659991,106160.0,106150.0,0.01900001]
[1762816524943,0.17525164,106160.0,106150.0,0.01900001]
[1762816525243,0.47068681,106160.0,106150.0,0.01900001]
[1762816530229,0.17525164,106160.0,106150.0,0.01900001]
[1762816530477,0.47068681,106160.0,106150.0,0.01900001]
[1762816532830,0.17525164,106160.0,106150.0,0.01900001]
[1762816533031,0.47068681,106160.0,106150.0,0.01900001]
[1762816543543,0.17525164,106160.0,106150.0,0.01900001]
[1762816543729,0.47068681,106160.0,106150.0,0.01900001]
[1762816550921,0.17525164,106160.0,106150.0,0.01900001]
[1762816551104,0.47068681,106160.0,106150.0,0.01900001]
[1762816558047,0.15053164,106160.0,106150.0,0.01900001]
[1762816558467,0.17336164,106160.0,106150.0,0.01900001]
[1762816559089,0.12210164,106160.0,106150.0,0.01900001]
[1762816559623,0.14992164,106160.0,106150.0,0.01900001]
[1762816563388,0.002,106160.0,106150.0,0.53903008]
[1762816563591,8e-05,106220.0,106200.0,0.18832274]
[1762816563798,0.18830618,106210.0,106200.0,0.35044984]
[1762816563997,0.18830618,106210.0,106200.0,0.35061746]
[1762816564202,0.18853959,106210.0,106200.0,0.35061746]
[1762816564417,0.23918959,106210.0,106200.0,0.01900001]
[1762816564616,0.18837479,106180.0,106170.0,0.01900001]
[1762816564830,0.18837479,106180.0,106170.0,0.05518229]
[1762816566191,0.18837479,106180.0,106170.0,0.05718229]
[1762816566758,0.21619479,106180.0,106170.0,0.02300001]
[1762816567404,0.21619479,106180.0,106170.0,0.05918229]
[1762816567818,0.21619479,106180.0,106170.0,0.05718229]
[1762816568083,0.21619479,106180.0,106170.0,0.05518229]
[1762816568356,0.21619479,106180.0,106170.0,0.05618229]
[1762816568514,0.21619479,106180.0,106170.0,0.05718229]
[1762816573469,0.20009479,106180.0,106170.0,0.05718229]
[1762816580427,0.21619479,106180.0,106170.0,0.05718229]
[1762816582199,0.20009479,106180.0,106170.0,0.05718229]
[1762816582601,0.23924479,106180.0,106170.0,0.05718229]
[1762816582805,0.21554479,106180.0,106170.0,0.05718229]
[1762816584690,0.23924479,106180.0,106170.0,0.05718229]
[1762816584887,0.53467996,106180.0,106170.0,0.02100001]
[1762816585506,0.23924479,106180.0,106170.0,0.02100001]
[1762816586185,0.23924479,106180.0,106170.0,0.02000001]
[1762816586397,0.24024479,106180.0,106170.0,0.02000001]
[1762816586804,0.24024479,106180.0,106170.0,0.01900001]
[1762816587115,0.53554541,106180.0,106170.0,0.01900001]
[1762816587331,0.53654541,106180.0,106170.0,0.01900001]
[1762816588705,0.24124479,106180.0,106170.0,0.01900001]
[1762816588941,0.53654541,106180.0,106170.0,0.01900001]
[1762816590051,0.83184603,106180.0,106170.0,0.01900001]
[1762816591320,0.24124479,106180.0,106170.0,0.01900001]
[1762816591532,0.53654541,106180.0,106170.0,0.01900001]
[1762816595519,0.19037479,106180.0,106170.0,0.36932062]
[1762816595728,0.19037479,106180.0,106170.0,0.53886004]
[1762816596384,0.18937479,106180.0,106170.0,0.53886004]
[1762816596604,0.20950655,106190.0,106170.0,0.53886004]
[1762816596770,0.20950655,106190.0,106180.0,0.31430063]
[1762816597199,0.20950655,106190.0,106180.0,0.01900001]
[1762816597399,0.20950655,106190.0,106180.0,0.31430063]
[1762816597982,0.21050655,106190.0,106180.0,0.31430063]
[1762816599142,0.21050655,106190.0,106180.0,0.01900001]
[1762816599613,0.19978655,106190.0,106180.0,0.01900001]
[1762816610368,0.21200655,106190.0,106180.0,0.01900001]
[1762816619738,0.50730717,106190.0,106180.0,0.01900001]
[1762816619939,0.52343717,106190.0,106180.0,0.01900001]
[1762816620134,0.54680717,106190.0,106180.0,0.01900001]
[1762816623532,0.84210779,106190.0,106180.0,0.01900001]
[1762816624542,0.18839487,106160.0,106140.0,0.31304]
[1762816624704,0.49544549,106160.0,106150.0,0.02]
[1762816625109,0.51881549,106160.0,106150.0,0.02]
[1762816625295,0.53494549,106160.0,106150.0,0.02]
[1762816625651,0.53499314,106160.0,106150.0,0.02]
[1762816625851,0.21632252,106160.0,106150.0,0.02]
[1762816626052,0.21632252,106160.0,106150.0,0.021]
[1762816626299,0.21632252,106160.0,106150.0,0.02]
[1762816626497,0.23969252,106160.0,106150.0,0.02]
[1762816628482,0.23969252,106160.0,106150.0,0.3514829]
[1762816628483,0.18844252,106160.0,106150.0,0.3514829]
[1762816632716,0.18844252,106160.0,106150.0,0.31530062]
[1762816633703,4.765e-05,106160.0,106150.0,0.53989552]
[1762816633914,4.765e-05,106160.0,106150.0,1.32650114]
[1762816634289,0.17594438,106180.0,106170.0,0.22455941]
[1762816634492,0.17599201,106180.0,106170.0,0.53986003]
[1762816638152,0.17599201,106180.0,106170.0,0.3514829]
[1762816647040,0.17599201,106180.0,106170.0,0.53974132]
[1762816648673,0.17599201,106180.0,106170.0,0.35136419]
[1762816649004,0.17462292,106180.0,106170.0,0.35136419]
[1762816651077,0.17462292,106180.0,106170.0,0.53974132]
[1762816651603,0.17462292,106180.0,106170.0,0.35136419]
[1762816652780,0.17462292,106180.0,106170.0,0.53974132]
[1762816653646,0.17462292,106180.0,106170.0,0.35136419]
[1762816654083,0.17462292,106180.0,106170.0,0.53974132]
[1762816654492,0.18840701,106180.0,106170.0,0.53974132]
[1762816654978,0.18840701,106180.0,106170.0,0.24455941]
[1762816655408,0.18840701,106180.0,106170.0,0.53974132]
[1762816656155,4.763e-05,106180.0,106170.0,0.53974132]
[1762816656273,0.18840701,106180.0,106170.0,0.53974132]
[1762816656735,4.763e-05,106180.0,106170.0,0.53974132]
[1762816657340,4.763e-05,106180.0,106170.0,1.37589123]
[1762816657544,7.63e-06,106180.0,106170.0,1.37589123]
[1762816658460,7.63e-06,106180.0,106170.0,1.37889123]
[1762816658659,7.63e-06,106180.0,106170.0,1.38089123]
[1762816659298,7.63e-06,106180.0,106170.0,1.40528546]
[1762816659700,7.63e-06,106180.0,106170.0,1.41449475]
[1762816659926,7.63e-06,106180.0,106170.0,1.48683573]
[1762816662042,0.17054723,106210.0,106200.0,0.24450619]
[1762816662239,0.17063697,106210.0,106200.0,0.5396881]
[1762816663412,0.17163697,106210.0,106200.0,0.5396881]
[1762816664248,0.17263697,106210.0,106200.0,0.5396881]
[1762816668803,0.17263697,106210.0,106200.0,0.35136419]
[1762816669574,0.17263697,106210.0,106200.0,0.5396881]
[1762816673880,0.17263697,106210.0,106200.0,0.35136419]
[1762816677158,0.00208974,106210.0,106200.0,0.5396881]
[1762816677473,0.19039592,106210.0,106200.0,0.5396881]
[1762816679708,0.19039592,106210.0,106200.0,0.35136419]
[1762816680333,0.19039592,106210.0,106200.0,0.5396881]
[1762816682989,0.19039592,106210.0,106200.0,0.35136419]
[1762816686078,0.19039592,106210.0,106200.0,0.5396881]
[1762816689321,0.19039592,106210.0,106200.0,0.35136419]
[1762816690243,0.18524322,106210.0,106200.0,0.35136419]
[1762816694508,0.18524322,106210.0,106200.0,0.5396881]
[1762816694821,0.23223019,106220.0,106200.0,0.5396881]
[1762816695041,0.20958019,106220.0,106210.0,0.31518191]
[1762816695477,0.20958019,106220.0,106210.0,0.02]
[1762816696116,0.22535019,106220.0,106210.0,0.02]
[1762816696481,0.22535019,106220.0,106210.0,0.024]
[1762816697796,0.22535019,106220.0,106210.0,0.029]
[1762816698525,0.18836845,106220.0,106210.0,0.54867037]
[1762816698815,0.23267994,106240.0,106220.0,0.22447073]
[1762816699047,0.21002994,106240.0,106230.0,0.31518191]
[1762816699167,0.21002994,106240.0,106230.0,0.35136419]